[Event "*** Titled Tuesday Blitz"]
[Site "Chess.com"]
[Date "2021.03.09"]
[Round "3"]
[White "manitodeplomo"]
[Black "Homyakova_Elena"]
[Result "0-1"]
[WhiteElo "2569"]
[BlackElo "2275"]
[TimeControl "180+1"]
[EndTime "10:28:50 PST"]
[Termination "Homyakova_Elena won on time"]

1. d4 {[%clk 0:02:29.4]} 1... Nf6 {[%clk 0:02:58.8]} 2. c4 {[%clk 0:02:22.6]}
2... c5 {[%clk 0:02:58.2]} 3. d5 {[%clk 0:02:12.3]} 3... b5 {[%clk 0:02:57.9]}
4. Qc2 {[%clk 0:02:04.6]} 4... d6 {[%clk 0:02:57.4]} 5. e4 {[%clk 0:02:03.9]}
5... g6 {[%clk 0:02:56.7]} 6. cxb5 {[%clk 0:02:03.4]} 6... a6 {[%clk 0:02:55.9]}
7. Nc3 {[%clk 0:02:02.9]} 7... Bg7 {[%clk 0:02:56.1]} 8. Nf3 {[%clk 0:02:00.2]}
8... O-O {[%clk 0:02:56]} 9. a4 {[%clk 0:01:57.8]} 9... e6 {[%clk 0:02:45.8]}
10. dxe6 {[%clk 0:01:03.9]} 10... Bxe6 {[%clk 0:02:46.7]} 11. Be2 {[%clk
0:01:02.5]} 11... axb5 {[%clk 0:02:41.5]} 12. Bxb5 {[%clk 0:01:02]} 12... d5
{[%clk 0:02:36.9]} 13. exd5 {[%clk 0:01:01.5]} 13... Nxd5 {[%clk 0:02:36.7]} 14.
O-O {[%clk 0:01:01.8]} 14... Nb4 {[%clk 0:02:16.4]} 15. Qe4 {[%clk 0:00:49.8]}
15... N8a6 {[%clk 0:01:59]} 16. Rd1 {[%clk 0:00:35.2]} 16... Qb6 {[%clk
0:01:51.7]} 17. Bg5 {[%clk 0:00:29.4]} 17... Nc7 {[%clk 0:01:46.3]} 18. Be7
{[%clk 0:00:23.5]} 18... Rfb8 {[%clk 0:01:38.9]} 19. Qh4 {[%clk 0:00:19.2]}
19... Nxb5 {[%clk 0:01:20.9]} 20. axb5 {[%clk 0:00:16.3]} 20... Nc2 {[%clk
0:01:11.4]} 21. Rxa8 {[%clk 0:00:15.8]} 21... Rxa8 {[%clk 0:01:12.3]} 22. Bd8
{[%clk 0:00:16]} 22... Qb7 {[%clk 0:01:01.4]} 23. b6 {[%clk 0:00:15.6]} 23...
Nd4 {[%clk 0:00:57.6]} 24. Nxd4 {[%clk 0:00:14.2]} 24... cxd4 {[%clk 0:00:58.5]}
25. Ne2 {[%clk 0:00:13]} 25... d3 {[%clk 0:00:34.2]} 26. Nc3 {[%clk 0:00:12.8]}
26... Bb3 {[%clk 0:00:27.8]} 27. Rxd3 {[%clk 0:00:01.1]} 27... Ra1+ {[%clk
0:00:24.8]} 28. Nd1 {[%clk 0:00:01.2]} 28... Rxd1+ {[%clk 0:00:20]} 0-1

[Event "*** Titled Tuesday Blitz"]
[Site "Chess.com"]
[Date "2021.03.09"]
[Round "3"]
[White "fabianvivasz"]
[Black "niki_2003"]
[Result "0-1"]
[WhiteElo "2284"]
[BlackElo "2050"]
[TimeControl "180+1"]
[EndTime "10:28:52 PST"]
[Termination "niki_2003 won on time"]

1. e4 {[%clk 0:03:00.9]} 1... c6 {[%clk 0:02:57.3]} 2. d4 {[%clk 0:02:58.7]}
2... d5 {[%clk 0:02:56.6]} 3. e5 {[%clk 0:02:58.6]} 3... Bf5 {[%clk 0:02:54.2]}
4. Nf3 {[%clk 0:02:55.4]} 4... e6 {[%clk 0:02:46.4]} 5. Be2 {[%clk 0:02:53.8]}
5... Ne7 {[%clk 0:02:45.2]} 6. O-O {[%clk 0:02:24.5]} 6... c5 {[%clk 0:02:42.9]}
7. Be3 {[%clk 0:02:21.6]} 7... Nec6 {[%clk 0:02:41.9]} 8. dxc5 {[%clk
0:02:15.2]} 8... Nd7 {[%clk 0:02:39.3]} 9. Nd4 {[%clk 0:01:42.3]} 9... Bg6
{[%clk 0:02:24.1]} 10. Nxc6 {[%clk 0:01:35.1]} 10... bxc6 {[%clk 0:02:25]} 11.
b4 {[%clk 0:01:20]} 11... Nxe5 {[%clk 0:02:21]} 12. f4 {[%clk 0:01:16.7]} 12...
Nd7 {[%clk 0:02:16.9]} 13. Bd4 {[%clk 0:01:14.1]} 13... Nf6 {[%clk 0:02:04.3]}
14. Nd2 {[%clk 0:01:09.3]} 14... Be7 {[%clk 0:01:55.4]} 15. g4 {[%clk
0:00:59.5]} 15... h6 {[%clk 0:01:14.3]} 16. h3 {[%clk 0:00:28.8]} 16... O-O
{[%clk 0:00:55.7]} 17. Nf3 {[%clk 0:00:23.2]} 17... Ne4 {[%clk 0:00:49]} 18. Ne5
{[%clk 0:00:10.1]} 18... Ng3 {[%clk 0:00:48.3]} 19. Rf2 {[%clk 0:00:07.9]} 19...
Nxe2+ {[%clk 0:00:47.9]} 20. Qxe2 {[%clk 0:00:08.8]} 20... Qc7 {[%clk
0:00:45.8]} 21. f5 {[%clk 0:00:08.7]} 21... exf5 {[%clk 0:00:45.6]} 22. gxf5
{[%clk 0:00:07.5]} 22... Bh7 {[%clk 0:00:46]} 23. Rg2 {[%clk 0:00:03.8]} 23...
Bf6 {[%clk 0:00:40.7]} 24. Nxc6 {[%clk 0:00:03.7]} 24... Qxc6 {[%clk 0:00:39]}
25. Bxf6 {[%clk 0:00:02]} 25... Qxf6 {[%clk 0:00:38.9]} 26. Rf1 {[%clk
0:00:02.4]} 26... Rfe8 {[%clk 0:00:37.7]} 27. Qf3 {[%clk 0:00:02.5]} 27... Re4
{[%clk 0:00:37.1]} 28. Kh1 {[%clk 0:00:01.9]} 28... Rae8 {[%clk 0:00:36.6]} 29.
Rfg1 {[%clk 0:00:02.4]} 29... g5 {[%clk 0:00:33.2]} 30. Qd3 {[%clk 0:00:01.6]}
30... Rd4 {[%clk 0:00:30.5]} 31. Qb5 {[%clk 0:00:01.6]} 31... Bxf5 {[%clk
0:00:26.9]} 0-1

[Event "*** Titled Tuesday Blitz"]
[Site "Chess.com"]
[Date "2021.03.09"]
[Round "3"]
[White "korkmaz16"]
[Black "Abund"]
[Result "0-1"]
[WhiteElo "2429"]
[BlackElo "2646"]
[TimeControl "180+1"]
[EndTime "10:28:53 PST"]
[Termination "Abund won by resignation"]

1. e4 {[%clk 0:03:00.9]} 1... c5 {[%clk 0:02:59.8]} 2. Nf3 {[%clk 0:02:58.7]}
2... d6 {[%clk 0:02:59.8]} 3. Bb5+ {[%clk 0:02:50.1]} 3... Nd7 {[%clk
0:02:59.4]} 4. d4 {[%clk 0:02:49.3]} 4... cxd4 {[%clk 0:02:59.2]} 5. Qxd4 {[%clk
0:02:48.4]} 5... a6 {[%clk 0:02:59.5]} 6. Bxd7+ {[%clk 0:02:47.1]} 6... Bxd7
{[%clk 0:03:00.4]} 7. O-O {[%clk 0:02:46.7]} 7... Nf6 {[%clk 0:02:58.6]} 8. Re1
{[%clk 0:02:41.7]} 8... g6 {[%clk 0:02:55.3]} 9. Qd3 {[%clk 0:02:15.4]} 9... Bg7
{[%clk 0:02:51.3]} 10. a4 {[%clk 0:02:10.8]} 10... O-O {[%clk 0:02:44.2]} 11. c4
{[%clk 0:02:08.2]} 11... Bg4 {[%clk 0:02:33.9]} 12. Nfd2 {[%clk 0:01:40.4]}
12... Nd7 {[%clk 0:02:32.1]} 13. Nc3 {[%clk 0:01:30.1]} 13... Rc8 {[%clk
0:02:26.4]} 14. b3 {[%clk 0:01:12.4]} 14... b5 {[%clk 0:01:48.2]} 15. Bb2 {[%clk
0:00:46.2]} 15... Ne5 {[%clk 0:01:19.1]} 16. Qf1 {[%clk 0:00:42.2]} 16... bxc4
{[%clk 0:01:14.6]} 17. bxc4 {[%clk 0:00:40.9]} 17... Bd7 {[%clk 0:00:54.8]} 18.
Nd5 {[%clk 0:00:37.9]} 18... e6 {[%clk 0:00:50.2]} 19. Ne3 {[%clk 0:00:37.5]}
19... Qb6 {[%clk 0:00:41.2]} 20. Reb1 {[%clk 0:00:33.8]} 20... Qa7 {[%clk
0:00:39.2]} 21. Ba3 {[%clk 0:00:24.6]} 21... Qc7 {[%clk 0:00:35.7]} 22. Ra2
{[%clk 0:00:22]} 22... Rb8 {[%clk 0:00:33]} 23. Rc1 {[%clk 0:00:19.4]} 23...
Rfc8 {[%clk 0:00:32.2]} 24. f4 {[%clk 0:00:18.1]} 24... Nc6 {[%clk 0:00:30.9]}
25. Nf3 {[%clk 0:00:18.5]} 25... Nd4 {[%clk 0:00:29.5]} 26. Nd2 {[%clk
0:00:14.6]} 26... Nb3 {[%clk 0:00:21.1]} 27. Nxb3 {[%clk 0:00:11]} 27... Rxb3
{[%clk 0:00:20.7]} 28. Qe1 {[%clk 0:00:11.4]} 28... Bd4 {[%clk 0:00:18.5]} 29.
Re2 {[%clk 0:00:09.9]} 29... Rxa3 {[%clk 0:00:16.7]} 0-1

[Event "*** Titled Tuesday Blitz"]
[Site "Chess.com"]
[Date "2021.03.09"]
[Round "3"]
[White "iturrizaga"]
[Black "Nikolakis2014"]
[Result "1-0"]
[WhiteElo "2840"]
[BlackElo "2598"]
[TimeControl "180+1"]
[EndTime "10:28:54 PST"]
[Termination "iturrizaga won by resignation"]

1. c4 {[%clk 0:03:00.9]} 1... Nf6 {[%clk 0:02:59.4]} 2. g3 {[%clk 0:03:01.1]}
2... g6 {[%clk 0:02:59.6]} 3. Bg2 {[%clk 0:03:00.9]} 3... Bg7 {[%clk 0:02:59.9]}
4. Nc3 {[%clk 0:03:01.5]} 4... O-O {[%clk 0:02:59.7]} 5. d4 {[%clk 0:03:02.1]}
5... d6 {[%clk 0:02:59.7]} 6. e4 {[%clk 0:03:02.4]} 6... Nbd7 {[%clk 0:02:59.6]}
7. Nge2 {[%clk 0:03:02.3]} 7... e5 {[%clk 0:02:59.5]} 8. O-O {[%clk 0:03:02.3]}
8... exd4 {[%clk 0:02:59.1]} 9. Nxd4 {[%clk 0:03:03.2]} 9... Re8 {[%clk
0:02:59.2]} 10. Be3 {[%clk 0:02:58.5]} 10... a6 {[%clk 0:02:58.2]} 11. a4 {[%clk
0:02:43.1]} 11... Nc5 {[%clk 0:02:56.9]} 12. f3 {[%clk 0:02:41.7]} 12... h5
{[%clk 0:02:49.9]} 13. b4 {[%clk 0:02:33.5]} 13... Ne6 {[%clk 0:02:48.1]} 14.
Nb3 {[%clk 0:02:28.9]} 14... h4 {[%clk 0:02:45.1]} 15. Rc1 {[%clk 0:02:09.7]}
15... Nh5 {[%clk 0:02:39.4]} 16. Qe1 {[%clk 0:02:02]} 16... hxg3 {[%clk
0:02:09]} 17. hxg3 {[%clk 0:02:01]} 17... a5 {[%clk 0:01:27.7]} 18. b5 {[%clk
0:02:00.5]} 18... c6 {[%clk 0:01:21.3]} 19. f4 {[%clk 0:01:49.5]} 19... Nf6
{[%clk 0:00:59.5]} 20. Bf3 {[%clk 0:01:42.6]} 20... Bd7 {[%clk 0:00:50.8]} 21.
Qd2 {[%clk 0:01:37.8]} 21... Qe7 {[%clk 0:00:38.5]} 22. Rfd1 {[%clk 0:01:35.3]}
22... Bf8 {[%clk 0:00:24.6]} 23. e5 {[%clk 0:01:35]} 23... dxe5 {[%clk
0:00:19.4]} 24. fxe5 {[%clk 0:01:35]} 24... Ng7 {[%clk 0:00:15.1]} 25. exf6
{[%clk 0:01:15]} 25... Qxe3+ {[%clk 0:00:14.8]} 26. Qxe3 {[%clk 0:01:15]} 26...
Rxe3 {[%clk 0:00:14.8]} 27. fxg7 {[%clk 0:01:15.2]} 27... Bxg7 {[%clk
0:00:14.3]} 28. Kf2 {[%clk 0:01:07.1]} 28... Rae8 {[%clk 0:00:10.6]} 29. Rxd7
{[%clk 0:00:53.9]} 29... Bxc3 {[%clk 0:00:10.5]} 30. Nc5 {[%clk 0:00:42]} 30...
Bb4 {[%clk 0:00:10.4]} 31. Nxb7 {[%clk 0:00:41.7]} 31... cxb5 {[%clk 0:00:10.8]}
32. cxb5 {[%clk 0:00:39.9]} 32... Rb3 {[%clk 0:00:10.9]} 33. Rc2 {[%clk
0:00:33.5]} 33... Ree3 {[%clk 0:00:10.7]} 34. Bd5 {[%clk 0:00:26.3]} 34... Be1+
{[%clk 0:00:10.8]} 35. Kf1 {[%clk 0:00:25.8]} 35... Bxg3 {[%clk 0:00:10.4]} 36.
Bxb3 {[%clk 0:00:25.1]} 1-0

[Event "*** Titled Tuesday Blitz"]
[Site "Chess.com"]
[Date "2021.03.09"]
[Round "3"]
[White "CzechmVIII"]
[Black "ChainsOfFantasia"]
[Result "1-0"]
[WhiteElo "2253"]
[BlackElo "2452"]
[TimeControl "180+1"]
[EndTime "10:28:54 PST"]
[Termination "CzechmVIII won by resignation"]

1. e4 {[%clk 0:03:00.9]} 1... Nf6 {[%clk 0:02:58.2]} 2. e5 {[%clk 0:03:00.3]}
2... Nd5 {[%clk 0:02:58.4]} 3. d4 {[%clk 0:03:00.8]} 3... d6 {[%clk 0:02:57.4]}
4. Nf3 {[%clk 0:03:01]} 4... g6 {[%clk 0:02:56.2]} 5. Bc4 {[%clk 0:03:00.2]}
5... Nb6 {[%clk 0:02:55.8]} 6. Bb3 {[%clk 0:03:00.3]} 6... Bg7 {[%clk
0:02:54.8]} 7. Ng5 {[%clk 0:03:00.3]} 7... O-O {[%clk 0:02:52.8]} 8. f4 {[%clk
0:02:47.1]} 8... d5 {[%clk 0:02:32]} 9. O-O {[%clk 0:02:34.4]} 9... f6 {[%clk
0:02:31.6]} 10. Nf3 {[%clk 0:02:33]} 10... fxe5 {[%clk 0:02:31.2]} 11. fxe5
{[%clk 0:02:33.1]} 11... Nc6 {[%clk 0:02:27.9]} 12. c3 {[%clk 0:02:22.4]} 12...
Na5 {[%clk 0:02:18.5]} 13. Bc2 {[%clk 0:02:18.8]} 13... Bf5 {[%clk 0:02:18.9]}
14. Bxf5 {[%clk 0:02:13.5]} 14... Rxf5 {[%clk 0:02:19.8]} 15. Ng5 {[%clk
0:01:58.3]} 15... Qd7 {[%clk 0:02:14.6]} 16. Rxf5 {[%clk 0:01:56.5]} 16... Qxf5
{[%clk 0:02:15.5]} 17. Qf3 {[%clk 0:01:49.3]} 17... Rf8 {[%clk 0:01:49.4]} 18.
Qxf5 {[%clk 0:01:47.9]} 18... Rxf5 {[%clk 0:01:50.3]} 19. Ne6 {[%clk 0:01:39]}
19... c6 {[%clk 0:01:29.3]} 20. Bg5 {[%clk 0:01:19]} 20... Kf7 {[%clk
0:01:24.1]} 21. Nd8+ {[%clk 0:01:05.1]} 21... Ke8 {[%clk 0:01:22.2]} 22. Ne6
{[%clk 0:01:03.9]} 22... Bh8 {[%clk 0:00:50.5]} 23. g4 {[%clk 0:00:55.2]} 23...
Rf7 {[%clk 0:00:47.9]} 24. Nd2 {[%clk 0:00:50.9]} 24... Nac4 {[%clk 0:00:47.2]}
25. Nxc4 {[%clk 0:00:46]} 25... dxc4 {[%clk 0:00:44.8]} 26. Nc5 {[%clk
0:00:33.5]} 26... Nd5 {[%clk 0:00:42.5]} 27. Nxb7 {[%clk 0:00:29.6]} 27... Rf3
{[%clk 0:00:39.9]} 28. Rf1 {[%clk 0:00:26.6]} 28... Rd3 {[%clk 0:00:26.3]} 29.
Nc5 {[%clk 0:00:24.3]} 29... Rh3 {[%clk 0:00:15.1]} 30. Kg2 {[%clk 0:00:23.7]}
30... Ne3+ {[%clk 0:00:13.6]} 31. Kxh3 {[%clk 0:00:17.4]} 31... Nxf1 {[%clk
0:00:13.3]} 32. Kg2 {[%clk 0:00:16.4]} 1-0

[Event "*** Titled Tuesday Blitz"]
[Site "Chess.com"]
[Date "2021.03.09"]
[Round "3"]
[White "BilodeauA"]
[Black "Skatchkov_V"]
[Result "1-0"]
[WhiteElo "2907"]
[BlackElo "2625"]
[TimeControl "180+1"]
[EndTime "10:28:55 PST"]
[Termination "BilodeauA won on time"]

1. e4 {[%clk 0:03:00.9]} 1... e5 {[%clk 0:02:59.3]} 2. Nf3 {[%clk 0:03:00.6]}
2... d5 {[%clk 0:02:51.7]} 3. Nxe5 {[%clk 0:02:51.4]} 3... Bd6 {[%clk
0:02:51.2]} 4. d4 {[%clk 0:02:50.5]} 4... dxe4 {[%clk 0:02:51.7]} 5. Nc4 {[%clk
0:02:49]} 5... Nc6 {[%clk 0:02:51.9]} 6. c3 {[%clk 0:02:42.6]} 6... Nf6 {[%clk
0:02:49.7]} 7. Nxd6+ {[%clk 0:02:36.7]} 7... Qxd6 {[%clk 0:02:50.5]} 8. Be2
{[%clk 0:02:35.4]} 8... O-O {[%clk 0:02:49.8]} 9. O-O {[%clk 0:02:35]} 9... Nd5
{[%clk 0:02:28.9]} 10. Na3 {[%clk 0:02:33.7]} 10... Qg6 {[%clk 0:02:26.8]} 11.
Kh1 {[%clk 0:02:31.1]} 11... Bf5 {[%clk 0:01:39.1]} 12. Nc4 {[%clk 0:02:27.2]}
12... Rae8 {[%clk 0:01:38.4]} 13. a4 {[%clk 0:02:21.7]} 13... Kh8 {[%clk
0:01:17.5]} 14. Bh5 {[%clk 0:02:19.4]} 14... Qf6 {[%clk 0:01:14.9]} 15. Ne3
{[%clk 0:02:18.6]} 15... Nf4 {[%clk 0:01:13.3]} 16. Nxf5 {[%clk 0:02:16.6]}
16... Qxf5 {[%clk 0:01:13.9]} 17. Bg4 {[%clk 0:02:16.2]} 17... Qf6 {[%clk
0:01:12.4]} 18. Be3 {[%clk 0:01:50.4]} 18... Ne7 {[%clk 0:01:06.9]} 19. Qd2
{[%clk 0:01:40.5]} 19... Neg6 {[%clk 0:00:44.3]} 20. g3 {[%clk 0:01:31]} 20...
Nd5 {[%clk 0:00:25.9]} 21. c4 {[%clk 0:01:30.9]} 21... Nxe3 {[%clk 0:00:22.6]}
22. fxe3 {[%clk 0:01:31.8]} 22... Qg5 {[%clk 0:00:22]} 23. Bf5 {[%clk
0:01:20.1]} 23... c5 {[%clk 0:00:15.7]} 24. Bxg6 {[%clk 0:00:44.3]} 24... fxg6
{[%clk 0:00:16.6]} 25. d5 {[%clk 0:00:44.6]} 25... Rf3 {[%clk 0:00:10.7]} 26. d6
{[%clk 0:00:36.3]} 26... Rd8 {[%clk 0:00:01.9]} 27. Rxf3 {[%clk 0:00:25.4]}
27... exf3 {[%clk 0:00:02.8]} 28. Rf1 {[%clk 0:00:25.7]} 28... Qg4 {[%clk
0:00:02.6]} 29. Qd5 {[%clk 0:00:23.5]} 1-0

[Event "*** Titled Tuesday Blitz"]
[Site "Chess.com"]
[Date "2021.03.09"]
[Round "3"]
[White "Fighter008"]
[Black "Jan1401"]
[Result "1-0"]
[WhiteElo "2618"]
[BlackElo "2420"]
[TimeControl "180+1"]
[EndTime "10:28:57 PST"]
[Termination "Fighter008 won by resignation"]

1. e4 {[%clk 0:03:00.9]} 1... e6 {[%clk 0:03:00.2]} 2. d4 {[%clk 0:03:00.4]}
2... d5 {[%clk 0:03:00.7]} 3. Bd3 {[%clk 0:03:01]} 3... dxe4 {[%clk 0:02:59.8]}
4. Bxe4 {[%clk 0:03:01.9]} 4... Nf6 {[%clk 0:02:59.9]} 5. Bf3 {[%clk 0:03:02.2]}
5... Nbd7 {[%clk 0:02:58.7]} 6. Nc3 {[%clk 0:03:01.2]} 6... Bd6 {[%clk
0:02:58.7]} 7. Bg5 {[%clk 0:02:59.6]} 7... e5 {[%clk 0:02:53.3]} 8. Nge2 {[%clk
0:02:56.3]} 8... O-O {[%clk 0:02:48.2]} 9. Qd2 {[%clk 0:02:54.4]} 9... Re8
{[%clk 0:02:48.2]} 10. O-O-O {[%clk 0:02:45.6]} 10... e4 {[%clk 0:02:48.2]} 11.
Nxe4 {[%clk 0:02:35.2]} 11... Nxe4 {[%clk 0:02:45.2]} 12. Bxe4 {[%clk
0:02:33.1]} 12... f6 {[%clk 0:02:44.5]} 13. Bd5+ {[%clk 0:02:30.7]} 13... Kh8
{[%clk 0:02:44.5]} 14. Bh4 {[%clk 0:02:27.9]} 14... Nb6 {[%clk 0:02:41.3]} 15.
Bb3 {[%clk 0:02:25.7]} 15... a5 {[%clk 0:02:40.1]} 16. a3 {[%clk 0:02:23.2]}
16... a4 {[%clk 0:02:39.1]} 17. Ba2 {[%clk 0:02:23.4]} 17... Be6 {[%clk
0:02:26.3]} 18. d5 {[%clk 0:02:21]} 18... Bf7 {[%clk 0:02:20.9]} 19. Bg3 {[%clk
0:02:14.5]} 19... Qe7 {[%clk 0:02:07.7]} 20. Bxd6 {[%clk 0:02:07.4]} 20... cxd6
{[%clk 0:02:03]} 21. Nc3 {[%clk 0:02:05.1]} 21... Qc7 {[%clk 0:01:55.8]} 22.
Rhe1 {[%clk 0:02:03.8]} 22... Qc5 {[%clk 0:01:54.4]} 23. Ne4 {[%clk 0:01:57.7]}
23... Qc7 {[%clk 0:01:48.2]} 24. Qc3 {[%clk 0:01:51.5]} 24... Qd8 {[%clk
0:01:07.7]} 25. Qb4 {[%clk 0:01:48.3]} 25... Bg6 {[%clk 0:01:01.3]} 26. Nxd6
{[%clk 0:01:42.8]} 26... Rxe1 {[%clk 0:01:00.5]} 27. Rxe1 {[%clk 0:01:43.7]}
27... Qc7 {[%clk 0:00:55.2]} 28. c3 {[%clk 0:01:38.7]} 28... Rd8 {[%clk
0:00:52.6]} 29. Nb5 {[%clk 0:01:31.7]} 29... Qxh2 {[%clk 0:00:45.6]} 30. Qe7
{[%clk 0:01:22.4]} 30... Qb8 {[%clk 0:00:38.8]} 31. Qc7 {[%clk 0:01:06.5]} 31...
Qxc7 {[%clk 0:00:32.1]} 32. Nxc7 {[%clk 0:01:04.9]} 32... h5 {[%clk 0:00:28.2]}
33. c4 {[%clk 0:01:02]} 33... Nd7 {[%clk 0:00:26.6]} 34. Ne6 {[%clk 0:01:00.7]}
34... Rc8 {[%clk 0:00:26.2]} 35. Kd2 {[%clk 0:01:00.3]} 35... Bf7 {[%clk
0:00:22]} 36. f4 {[%clk 0:00:55.9]} 36... Nb6 {[%clk 0:00:21.3]} 37. c5 {[%clk
0:00:48.8]} 37... Nd7 {[%clk 0:00:16]} 38. f5 {[%clk 0:00:45.6]} 38... Kg8
{[%clk 0:00:14.3]} 39. d6 {[%clk 0:00:44.3]} 39... Ne5 {[%clk 0:00:13.7]} 40.
Rxe5 {[%clk 0:00:41.7]} 40... fxe5 {[%clk 0:00:13.4]} 41. d7 {[%clk 0:00:41.8]}
41... Bxe6 {[%clk 0:00:13.8]} 42. Bxe6+ {[%clk 0:00:40.1]} 42... Kf8 {[%clk
0:00:13.8]} 1-0

[Event "*** Titled Tuesday Blitz"]
[Site "Chess.com"]
[Date "2021.03.09"]
[Round "3"]
[White "Hongjin"]
[Black "thisunaa"]
[Result "1-0"]
[WhiteElo "2486"]
[BlackElo "2000"]
[TimeControl "180+1"]
[EndTime "10:28:58 PST"]
[Termination "Hongjin won by checkmate"]

1. Nf3 {[%clk 0:03:00.9]} 1... Nf6 {[%clk 0:02:59.2]} 2. g3 {[%clk 0:03:01.3]}
2... g6 {[%clk 0:02:58.7]} 3. Bg2 {[%clk 0:03:01.8]} 3... Bg7 {[%clk 0:02:59.1]}
4. O-O {[%clk 0:03:02.7]} 4... O-O {[%clk 0:02:59.5]} 5. c4 {[%clk 0:03:03.3]}
5... d6 {[%clk 0:02:55.4]} 6. Nc3 {[%clk 0:03:03.1]} 6... c5 {[%clk 0:02:53.6]}
7. d4 {[%clk 0:03:02.2]} 7... Nc6 {[%clk 0:02:37]} 8. d5 {[%clk 0:03:00.6]} 8...
Na5 {[%clk 0:02:36.9]} 9. Nd2 {[%clk 0:03:01]} 9... Rb8 {[%clk 0:02:27.3]} 10.
Qc2 {[%clk 0:03:00.1]} 10... e6 {[%clk 0:02:22.5]} 11. e4 {[%clk 0:02:54.4]}
11... exd5 {[%clk 0:02:21.4]} 12. Nxd5 {[%clk 0:02:54]} 12... Nxd5 {[%clk
0:02:19]} 13. cxd5 {[%clk 0:02:54.3]} 13... b5 {[%clk 0:02:18.7]} 14. Rb1 {[%clk
0:02:52]} 14... b4 {[%clk 0:02:16.8]} 15. b3 {[%clk 0:02:52.3]} 15... Ba6 {[%clk
0:02:16.8]} 16. Re1 {[%clk 0:02:52.3]} 16... Rc8 {[%clk 0:02:07.7]} 17. Bb2
{[%clk 0:02:49.6]} 17... Re8 {[%clk 0:01:42.8]} 18. Bxg7 {[%clk 0:02:35.9]}
18... Kxg7 {[%clk 0:01:43.7]} 19. f4 {[%clk 0:02:29.1]} 19... Qf6 {[%clk
0:01:42.7]} 20. e5 {[%clk 0:02:17.5]} 20... dxe5 {[%clk 0:01:37.9]} 21. Ne4
{[%clk 0:02:17.9]} 21... Qf5 {[%clk 0:01:17.6]} 22. Qb2 {[%clk 0:02:07.5]} 22...
Red8 {[%clk 0:00:46.1]} 23. fxe5 {[%clk 0:01:51.7]} 23... c4 {[%clk 0:00:37.3]}
24. bxc4 {[%clk 0:01:45.6]} 24... Nxc4 {[%clk 0:00:33.8]} 25. Qd4 {[%clk
0:01:39.6]} 25... Qxe5 {[%clk 0:00:29.7]} 26. Qxa7 {[%clk 0:01:40.5]} 26... Ra8
{[%clk 0:00:27.5]} 27. Qf2 {[%clk 0:01:35]} 27... Qxd5 {[%clk 0:00:26.4]} 28.
Qf6+ {[%clk 0:01:31.5]} 28... Kg8 {[%clk 0:00:26.5]} 29. Qh4 {[%clk 0:01:23.4]}
29... Qd4+ {[%clk 0:00:26.1]} 30. Kh1 {[%clk 0:01:21.6]} 30... Rac8 {[%clk
0:00:24.8]} 31. Nf6+ {[%clk 0:01:15.7]} 31... Kg7 {[%clk 0:00:19.6]} 32. Qxh7+
{[%clk 0:01:12.5]} 32... Kxf6 {[%clk 0:00:19.7]} 33. Rf1+ {[%clk 0:01:11.6]}
33... Ke6 {[%clk 0:00:09.1]} 34. Qxf7+ {[%clk 0:01:09.3]} 34... Kd6 {[%clk
0:00:09.2]} 35. Rbd1 {[%clk 0:01:06.1]} 35... Nd2 {[%clk 0:00:09.3]} 36. Rf6+
{[%clk 0:01:06.2]} 36... Kc5 {[%clk 0:00:09.4]} 37. Rxa6 {[%clk 0:01:03.9]}
37... Rf8 {[%clk 0:00:07.8]} 38. Qe7+ {[%clk 0:01:01.5]} 38... Kb5 {[%clk
0:00:07.2]} 39. Qb7+ {[%clk 0:01:00.8]} 39... Kc4 {[%clk 0:00:06.9]} 40. Rc6+
{[%clk 0:00:51.5]} 40... Kd3 {[%clk 0:00:06.7]} 41. Qb5+ {[%clk 0:00:49.7]}
41... Ke3 {[%clk 0:00:04.3]} 42. Re1+ {[%clk 0:00:49.7]} 42... Kf2 {[%clk
0:00:04]} 43. Qe2# {[%clk 0:00:49.8]} 1-0

[Event "*** Titled Tuesday Blitz"]
[Site "Chess.com"]
[Date "2021.03.09"]
[Round "3"]
[White "PushingpawnsNYC"]
[Black "OMGCovid-19"]
[Result "1-0"]
[WhiteElo "2310"]
[BlackElo "2073"]
[TimeControl "180+1"]
[EndTime "10:28:59 PST"]
[Termination "PushingpawnsNYC won on time"]

1. e4 {[%clk 0:03:00.9]} 1... e6 {[%clk 0:02:58.2]} 2. d4 {[%clk 0:02:57.9]}
2... d5 {[%clk 0:02:54]} 3. Bd3 {[%clk 0:02:58.1]} 3... Nf6 {[%clk 0:02:52.7]}
4. e5 {[%clk 0:02:56.5]} 4... Nfd7 {[%clk 0:02:52.6]} 5. f4 {[%clk 0:02:55.6]}
5... c5 {[%clk 0:02:52.7]} 6. c3 {[%clk 0:02:55.4]} 6... Nc6 {[%clk 0:02:52.1]}
7. Nf3 {[%clk 0:02:48.9]} 7... cxd4 {[%clk 0:02:48.1]} 8. cxd4 {[%clk 0:02:40]}
8... Be7 {[%clk 0:02:42.9]} 9. O-O {[%clk 0:02:19.7]} 9... g6 {[%clk 0:02:42.1]}
10. Nc3 {[%clk 0:02:17.6]} 10... a5 {[%clk 0:02:41.4]} 11. Be3 {[%clk
0:02:01.1]} 11... a4 {[%clk 0:02:40.6]} 12. Kh1 {[%clk 0:02:00.2]} 12... a3
{[%clk 0:02:39.2]} 13. b3 {[%clk 0:01:59.8]} 13... Nb4 {[%clk 0:02:38.7]} 14.
Bb1 {[%clk 0:01:57.3]} 14... Nb6 {[%clk 0:02:26.4]} 15. Ng5 {[%clk 0:01:48.1]}
15... Bd7 {[%clk 0:02:23.4]} 16. g4 {[%clk 0:01:44.8]} 16... Qc7 {[%clk
0:02:18.1]} 17. Qd2 {[%clk 0:01:39.3]} 17... Rc8 {[%clk 0:01:43.4]} 18. Ne2
{[%clk 0:01:27.3]} 18... Bb5 {[%clk 0:01:27]} 19. Rc1 {[%clk 0:01:24.6]} 19...
Qxc1+ {[%clk 0:01:09.7]} 20. Nxc1 {[%clk 0:01:23.2]} 20... O-O {[%clk
0:00:54.8]} 21. Nd3 {[%clk 0:01:12.8]} 21... Nc6 {[%clk 0:00:42.5]} 22. Nc5
{[%clk 0:00:53.3]} 22... Bxc5 {[%clk 0:00:15.1]} 23. dxc5 {[%clk 0:00:50.9]}
23... Nd7 {[%clk 0:00:15.8]} 24. b4 {[%clk 0:00:47.6]} 24... d4 {[%clk
0:00:12.9]} 25. Bxd4 {[%clk 0:00:46.3]} 25... Rfd8 {[%clk 0:00:12.3]} 26. Qf2
{[%clk 0:00:45]} 26... Nxd4 {[%clk 0:00:09.2]} 27. Qxd4 {[%clk 0:00:43.7]} 27...
Nxc5 {[%clk 0:00:09.7]} 28. Qe3 {[%clk 0:00:39.8]} 28... Rd1+ {[%clk 0:00:08.9]}
29. Kg2 {[%clk 0:00:39.9]} 29... Nd3 {[%clk 0:00:08.7]} 30. Bxd3 {[%clk
0:00:38.4]} 30... Rxa1 {[%clk 0:00:05.9]} 31. Bxb5 {[%clk 0:00:37.8]} 31...
Rxa2+ {[%clk 0:00:05.8]} 32. Kh3 {[%clk 0:00:37]} 32... Rcc2 {[%clk 0:00:05.5]}
33. Qb6 {[%clk 0:00:28.1]} 33... Rxh2+ {[%clk 0:00:04.6]} 34. Kg3 {[%clk
0:00:28]} 34... Rag2+ {[%clk 0:00:04.6]} 35. Kf3 {[%clk 0:00:28.1]} 35... a2
{[%clk 0:00:01.6]} 36. Qd8+ {[%clk 0:00:27]} 1-0